{"text_format":"1","workbook":"xlsx","n_sheets":10,"sheets":["Title Page","Instructions","Agenda & Attendance","Drawings","1","Minutes Template","AS1.1","Action Sheet Template","Parking Lot","Guidewords"],"not_rendered":{"charts":0,"images":2,"macros":1,"external_links":1,"defined_names":70,"comments":0,"pivot_tables":0},"unopened":[],"bounds":{"document_bytes":16777216,"sheet_cells":100000,"rows_first":2000,"rows_last":500,"rows_between":2000,"halvings":0,"cell_chars":16384,"cell_head_chars":4096},"cells_cut":0,"cells_raw":0,"read":"whole","date_system":"1900"}

{"sheet":"Title Page","index":0,"n_rows":34,"n_cols":10,"rows_kept":34,"cut":false,"hidden":false,"merged":[[22,4,22,8],[54,2,54,4],[55,2,55,4],[32,6,32,9],[47,2,47,4],[48,2,48,4],[49,2,49,4],[50,2,50,4],[51,2,51,4],[52,2,52,4],[36,2,36,4],[33,2,33,4],[34,2,34,4],[35,2,35,4],[45,2,45,4],[46,2,46,4],[43,2,43,4],[44,2,44,4],[53,2,53,4],[37,2,37,4],[38,2,38,4],[39,2,39,4],[40,2,40,4],[41,2,41,4],[42,2,42,4],[3,3,7,7],[26,2,26,3],[26,4,26,8],[28,2,28,3],[28,4,28,8],[16,2,16,3],[16,4,16,8],[14,2,14,3],[18,2,18,3],[20,2,20,3],[24,2,24,3],[14,4,14,8],[18,4,18,8],[20,4,20,8],[24,4,24,8],[22,2,22,3]]}
[]
[]
[]
[null,null,null,{"$f":"E17","v":"INSERT PROJECT TITLE"}]
[]
[]
[]
[]
[]
[null,null,null,null,null,"CHAIR STUDY REPORT"]
[]
[]
[]
[]
[null,null,"Project Number",null,"INSERT PROJECT NUMBER"]
[]
[null,null,"Project Title",null,"INSERT PROJECT TITLE"]
[]
[null,null,"Client Name",null,"INSERT CLIENT NAME"]
[]
[null,null,"CHAIR Date(s)",null,"INSERT CHAIR DATE(S)"]
[]
[null,null,"CHAIR Type",null,"CHAIR 2&3"]
[]
[null,null,"Project Scope and Objectives",null,"BRIEF OUTLINE OF PROJECT SCOPE AND CHAIR OBJECTIVES"]
[]
[null,null,"CHAIR Facilitator",null,"INSERT CHAIR FACILITATOR NAME"]
[]
[null,null,"CHAIR Scribe",null,"INSERT CHAIR SCRIBE NAME"]
[]
[]
[null,"DOCUMENT CONTROL"]
[null,null,null,null,null,null,"Approvals"]
[null,"Rev","Description",null,null,"Date","Prepared","Checked","Disc Approved","Project Approved"]

{"sheet":"Instructions","index":1,"n_rows":53,"n_cols":5,"rows_kept":53,"cut":false,"hidden":false,"merged":[[28,2,28,10],[29,2,29,10],[30,2,30,10],[31,2,31,10],[33,1,33,10],[20,2,20,10],[24,1,24,10],[25,2,25,10],[26,2,26,10],[27,2,27,10],[52,1,52,10],[43,2,43,3],[41,2,41,3],[45,1,45,10],[47,2,47,3],[47,4,47,9],[49,2,49,3],[49,4,49,9],[50,2,50,3],[50,4,50,9],[48,2,48,3],[48,4,48,9],[42,2,42,3],[1,3,2,7],[12,1,12,10],[13,2,13,5],[43,4,43,9],[42,4,42,9],[41,4,41,9],[39,4,39,9],[40,2,40,3],[40,4,40,9],[39,2,39,3],[37,1,37,10],[17,2,17,10],[18,2,18,10],[19,2,19,10],[7,1,7,10],[10,1,10,10]]}
[]
[null,null,null,"File Usage Instructions"]
[]
[]
["1.0","Introduction - Safety in Design Requirements"]
[]
[null,"Purpose:"]
[null,"Construction hazard assessment implication review (CHAIR) is a tool to assist designers, constructors, UW and other key stakeholders to come together to reduce construction, maintenance, repair and demolition project risks."]
[]
[null,"Timing:"]
[null,"The CHAIR workshop must occur before 100% design is issued to UW for review. It typically occurs around 80% design at milestone 5 completion with the CHAIR2 part focusing on construction and demolition issues and is performed just prior to construction, when the full detailed design is known. The CHAIR3 part focuses on maintenance and repair issues and is performed at the same time as the CHAIR2. The Project Documentation will define milestone when CHAIR must be done."]
[]
[null,"Note: Unless stated otherwise, the Consultant/Contractor is required to comply with the requirements set out in Pr8187 - Safety in Design Procedure."]
[]
[1.1000000000000001,"Required Documentation"]
[]
[null,"The following list outlines the documentation typically required for CHAIR workshops:"]
[null,null,"•         Equipment  GAs, installation details, site plans showing laydown areas and access ways etc."]
[null,null,"•         Construction methodology"]
[null,null,"•         Comissioning plans & procedures"]
[null,null,"•         Electronic CHAIR template"]
[]
[1.2,"Required Attendees"]
[]
[null,"In accordance with document Pr8187 Appendix B, the team composition for the workshop must be agreed with the Project Manager and should be reflected in the Attendance sheet provided. It normally, as a minimum, must include:"]
[null,null,"•         Independent Facilitator supported by a Scribe"]
[null,null,"•         Project Manager(s) - UW and Contractor"]
[null,null,"•         Designers (e.g. electrical, mechanical, civil/structural engineers)"]
[null,null,"•         Site construction contractor and representatives"]
[null,null,"•         Comissioning engineers"]
[null,null,"•         Operations representative"]
[null,null,"•         Maintenance representative"]
[]
[null,"*Note: The above listed representatives is a guide and can be subjected to change depending on the nature and scope of works with approval from Project Manager."]
[]
[1.3,"File Usage"]
[]
[null,"The spreadsheets contained in this file provide templates for the implementation of safety in design using the CHAIR process. The following table provides a list of sheet to be used and their usage instructions."]
[]
[null,"Step No.","Name",null,"Instructions"]
[null,1,"Title Page and Instructions Page",null,"The title page should be filled in with project details prior to beginning the CHAIR. The Instructions should be read and filled in prior to beginning the CHAIR."]
[null,"2.","Agenda & Attendance and Drawings ",null,"Records the attendance of the members attending the CHAIR. Complete this attendance sheet prior to beginning the the CHAIR. The drawings required for the workshop should be listed in the Drawings page and relevant nodes should be highlighted"]
[null,"3.",1,null,"This spreadsheet is for the recording of the CHAIR minute for Step/System 1, under review. Lists contained within the 'Category' column and 'Deviation' column should be utilised to select the correct guideword category and deviation in accordance with the CHAIR Guidewords page. If more rows are required during recording the 'Add Row' button on the top right hand side of the sheet should be clicked to add an additional row at the end of the page. To create a new page the \"Add Node\" button present on the top right hand side of the sheet should be used and the new page named to the Step/System under review."]
[null,"4.","AS1.1",null,"This sheet should be used as a post CHAIR workshop activity for outlining the hazards which need to be acted upon and the action closure requirements. "]
[]
[null,"The following table provides a list of templates and and a description of their contents. Please note that the template sheet tabs are in grey should not be altered anytime during the CHAIR as they form the basis for various functions."]
[]
[null,"No.","Name",null,"Instructions"]
[null,"1.","Minutes Template",null,"This sheet provides a template for the recording of the CHAIR minutes. This sheet should not be altered during the CHAIR. Recording of the CHAIR minutes should be conducted on the sheet named \"1\"."]
[null,"2.","Action Sheet Template",null,"This sheet provides a template for the creation of action sheets. This sheet should not be altered during the CHAIR."]
[null,"3.","Guidewords",null,"This sheet provides a bank of all the CHAIR guidewords referred to during the CHAIR. It should be printed and given to all attendees prior to the start of the CHAIR for reference. This sheet is connected via lists to the main CHAIR minutes template and all nodes pages and therefore should not be altered during the CHAIR."]
[]
[null,"NOTE: The Consultant/Contractor is responsible for ensuring CHAIR methodologies are applied properly and templates are used to ensure safe design."]

{"sheet":"Agenda & Attendance","index":2,"n_rows":29,"n_cols":10,"rows_kept":29,"cut":false,"hidden":false,"merged":[[36,3,36,4],[37,3,37,4],[38,3,38,4],[4,2,4,10],[8,2,8,10],[7,2,7,10],[6,2,6,10],[5,2,5,10],[35,1,35,2],[30,3,30,4],[31,3,31,4],[32,3,32,4],[33,3,33,4],[34,3,34,4],[28,7,28,8],[29,7,29,8],[28,5,28,6],[38,5,38,6],[39,5,39,6],[40,3,40,4],[41,3,41,4],[30,5,30,6],[31,5,31,6],[32,5,32,6],[33,5,33,6],[34,5,34,6],[35,5,35,6],[36,5,36,6],[37,5,37,6],[40,5,40,6],[41,5,41,6],[35,3,35,4],[43,1,43,2],[44,1,44,2],[30,1,30,2],[31,1,31,2],[32,1,32,2],[33,1,33,2],[34,1,34,2],[41,1,41,2],[39,1,39,2],[40,1,40,2],[36,1,36,2],[37,1,37,2],[38,1,38,2],[1,3,2,7],[4,0,4,1],[44,3,44,4],[43,5,43,6],[44,5,44,6],[26,1,26,10],[29,5,29,6],[42,5,42,6],[28,3,28,4],[29,3,29,4],[42,3,42,4],[43,3,43,4],[39,3,39,4],[28,1,28,2],[29,1,29,2],[42,1,42,2],[44,7,44,8],[30,7,30,8],[43,7,43,8],[42,7,42,8],[41,7,41,8],[40,7,40,8],[39,7,39,8],[38,7,38,8],[37,7,37,8],[36,7,36,8],[35,7,35,8],[34,7,34,8],[33,7,33,8],[32,7,32,8],[31,7,31,8]]}
[]
[null,null,null,"AGENDA & ATTENDANCE"]
[]
[]
["Date",null,{"$f":"DATE","v":"INSERT CHAIR DATE(S)"}]
["Head Contractor Name"]
["UW Project No. & Name",null,{"$f":"PROJNUM&\" \"&PROJTITLE","v":"INSERT PROJECT NUMBER INSERT PROJECT TITLE"}]
["Location (Site)"]
["Meeting Number"]
[]
[]
["2.0","Proposed Agenda"]
[]
[null,2.1,"Safety Share"]
[null,2.2000000000000002,"Introductions and Welcome (check of attendance in accordance with Pr8187 - Appendix B)"]
[null,2.2999999999999998,"Overview of the design for construction intent (CHAIR 2)"]
[null,2.4,"Overview of the design for operation and maintenance intent (CHAIR 3)"]
[null,2.5,"Custom breakdown structure for workshop discussion - Step/System"]
[null,null,"2.5.1","Application of guidewords"]
[null,null,"2.5.2","Capture significant outcomes"]
[null,2.6,"Other issues"]
[null,2.7,"Workshop closure"]
[]
[]
["3.0","Attendance"]
[]
[null,"The following table provides a list of people attending the workshop and is to be signed by every attendee."]
[]
[null,"Name",null,"Company",null,"Position",null,"Contact",null,"Signature"]

{"sheet":"Drawings","index":3,"n_rows":31,"n_cols":9,"rows_kept":31,"cut":false,"hidden":false,"merged":[[20,8,20,9],[19,8,19,9],[18,8,18,9],[17,8,17,9],[16,8,16,9],[25,8,25,9],[24,8,24,9],[23,8,23,9],[22,8,22,9],[21,8,21,9],[30,8,30,9],[29,8,29,9],[28,8,28,9],[27,8,27,9],[26,8,26,9],[14,1,14,2],[15,1,15,2],[14,3,14,5],[15,3,15,5],[7,2,7,10],[12,1,12,10],[14,8,14,9],[14,6,14,7],[1,3,2,7],[4,0,4,1],[4,2,4,10],[5,2,5,10],[6,2,6,10],[16,1,16,2],[17,1,17,2],[15,8,15,9],[17,6,17,7],[16,6,16,7],[15,6,15,7],[17,3,17,5],[16,3,16,5],[18,1,18,2],[19,1,19,2],[20,1,20,2],[20,6,20,7],[19,6,19,7],[18,6,18,7],[20,3,20,5],[19,3,19,5],[18,3,18,5],[21,1,21,2],[22,1,22,2],[23,1,23,2],[23,6,23,7],[22,6,22,7],[21,6,21,7],[23,3,23,5],[22,3,22,5],[21,3,21,5],[24,1,24,2],[25,1,25,2],[26,1,26,2],[26,6,26,7],[25,6,25,7],[24,6,24,7],[26,3,26,5],[25,3,25,5],[24,3,24,5],[30,1,30,2],[27,1,27,2],[28,1,28,2],[29,1,29,2],[30,6,30,7],[29,6,29,7],[28,6,28,7],[27,6,27,7],[30,3,30,5],[29,3,29,5],[28,3,28,5],[27,3,27,5]]}
[]
[null,null,null,"DRAWINGS"]
[]
[]
["Date",null,{"$f":"DATE","v":"INSERT CHAIR DATE(S)"}]
["Head Contractor Name",null,{"$f":"IF(HEADCONTRACTOR=\"\",\"\",HEADCONTRACTOR)","v":""}]
["UW Project No. & Name",null,{"$f":"PROJNUM&\" \"&PROJTITLE","v":"INSERT PROJECT NUMBER INSERT PROJECT TITLE"}]
["Location (Site)",null,{"$f":"IF(LOCATION=\"\",\"\",LOCATION)","v":""}]
[]
[]
["4.0","List of Drawings"]
[]
[null,"The following table provides a list of drawings used during the workshop and their associated revision numbers. This table should be filled out prior to the workshop and be printed along with the guideword set. At the start of the workshop it should be distributed to each attendee for reference to the relevant drawings."]
[]
[null,"No.",null,"Drawing/Document Ref No.",null,null,"Revision No.",null,"Minutes Sheet Ref."]
[null,1]
[null,2]
[null,3]
[null,4]
[null,5]
[null,6]
[null,7]
[null,8]
[null,9]
[null,10]
[null,11]
[null,12]
[null,13]
[null,14]
[null,15]
[null,16]

{"sheet":"1","index":4,"n_rows":27,"n_cols":11,"rows_kept":27,"cut":false,"hidden":false,"merged":[[4,0,4,1],[4,4,4,5],[4,7,4,10]]}
["CHAIR Minute Recording Sheet"]
[]
[]
[]
["Step/System:",null,1,"DESCRIPTION:",null,null,"P&ID/Doc Ref No.:"]
[]
["Ref No.","Category","Deviation-Guideword","Risk Issue(s)","Cause","Consequence(s)","Existing Safeguards","Action Description","Action By","Response or Action Sheet Reference No.","Date Closed"]
[1]
[{"$f":"A8+1","v":2}]
[{"$f":"A9+1","v":3}]
[4]
[5]
[6]
[7]
[8]
[9]
[10]
[11]
[12]
[13]
[14]
[15]
[16]
[17]
[18]
[19]
[{"$f":"A26+1","v":20}]

{"sheet":"Minutes Template","index":5,"n_rows":27,"n_cols":11,"rows_kept":27,"cut":false,"hidden":false,"merged":[[4,4,4,5],[4,7,4,10],[4,0,4,1]]}
["CHAIR Minute Recording Sheet"]
[]
[]
[]
["Step/System:",null,null,"DESCRIPTION:",null,null,"P&ID/Doc Ref No.:"]
[]
["Ref No.","Category","Deviation-Guideword","Risk Issue(s)","Cause","Consequence(s)","Existing Safeguards","Action Description","Action By","Response or Action Sheet Reference No.","Date Closed"]
[1]
[{"$f":"A8+1","v":2}]
[{"$f":"A9+1","v":3}]
[4]
[5]
[6]
[7]
[8]
[9]
[10]
[11]
[12]
[13]
[14]
[15]
[16]
[17]
[18]
[19]
[{"$f":"A26+1","v":20}]

{"sheet":"AS1.1","index":6,"n_rows":97,"n_cols":14,"rows_kept":97,"cut":false,"hidden":false,"merged":[[48,0,48,1],[48,2,48,4],[48,5,48,7],[48,8,48,10],[46,0,46,1],[46,2,46,4],[46,5,46,7],[46,8,46,10],[47,0,47,1],[47,2,47,4],[47,5,47,7],[47,8,47,10],[44,0,44,1],[44,2,44,4],[44,5,44,7],[44,8,44,10],[45,0,45,1],[45,2,45,4],[45,5,45,7],[45,8,45,10],[43,0,43,1],[43,2,43,4],[43,5,43,7],[43,8,43,10],[33,1,33,2],[33,3,33,10],[35,1,35,10],[37,1,37,2],[37,3,37,10],[38,1,38,2],[38,3,38,10],[39,1,39,2],[39,3,39,10],[40,1,40,2],[40,3,40,10],[42,1,42,10],[32,1,32,2],[32,3,32,10],[24,1,24,2],[24,3,24,10],[25,1,25,2],[25,3,25,10],[26,1,26,2],[26,3,26,10],[27,1,27,2],[27,3,27,10],[29,1,29,10],[31,1,31,2],[31,3,31,10],[23,1,23,2],[23,3,23,10],[11,0,11,1],[11,2,11,10],[13,1,13,10],[15,3,15,4],[15,5,15,10],[17,3,17,4],[19,1,19,10],[21,1,21,2],[21,3,21,10],[22,1,22,2],[22,3,22,10],[9,2,9,10],[1,3,4,7],[6,0,6,1],[6,2,6,10],[7,2,7,10],[8,2,8,10]]}
[null,null,null,null,null,null,null,null,null,null,null,null,"Node Numbers","Item Reference Numbers"]
[null,null,null,"ACTION & RESPONSE SHEET",null,null,null,null,null,null,null,null,1,1]
[null,null,null,null,null,null,null,null,null,null,null,null,{"$f":"M2+1","v":2},{"$f":"N2+1","v":2}]
[null,null,null,null,null,null,null,null,null,null,null,null,{"$f":"M3+1","v":3},3]
[null,null,null,null,null,null,null,null,null,null,null,null,4,4]
[null,null,null,null,null,null,null,null,null,null,null,null,5,5]
["CHAIR Date(s)",null,{"$f":"DATE","v":"INSERT CHAIR DATE(S)"},null,null,null,null,null,null,null,null,null,6,6]
["Head Contractor Name",null,{"$f":"IF(HEADCONTRACTOR=\"\",\"\",HEADCONTRACTOR)","v":""},null,null,null,null,null,null,null,null,null,7,7]
["UW Project No. & Name",null,{"$f":"PROJNUM&\" \"&PROJTITLE","v":"INSERT PROJECT NUMBER INSERT PROJECT TITLE"},null,null,null,null,null,null,null,null,null,8,8]
["Location (Site)",null,{"$f":"IF(LOCATION=\"\",\"\",LOCATION)","v":""},null,null,null,null,null,null,null,null,null,9,9]
[null,null,null,null,null,null,null,null,null,null,null,null,10,10]
["Action Sheet Due Date",null,null,null,null,null,null,null,null,null,null,null,11,11]
[null,null,null,null,null,null,null,null,null,null,null,null,12,12]
["P&ID Refs.",{"$f":"IF(VLOOKUP(NODE, INDIRECT(\"'\"&NODE&\"'!\"&\"NODE_DETAILS\"),6,0) = \"\",\"\", VLOOKUP(NODE,INDIRECT(\"'\"&NODE&\"'!\"&\"NODE_DETAILS\"),6,0))","v":""},null,null,null,null,null,null,null,null,null,null,{"$f":"M13+1","v":13},{"$f":"N13+1","v":13}]
[null,null,null,null,null,null,null,null,null,null,null,null,{"$f":"N14+1","v":14},{"$f":"N14+1","v":14}]
["Step/System:",1,null,"NODE DESCRIPTION:",null,{"$f":"IF(VLOOKUP(NODE, INDIRECT(\"'\"&NODE&\"'!\"&\"NODE_DETAILS\"),3,0) = \"\",\"\", VLOOKUP(NODE,INDIRECT(\"'\"&NODE&\"'!\"&\"NODE_DETAILS\"),3,0))","v":""},null,null,null,null,null,null,15,15]
[null,null,null,null,null,null,null,null,null,null,null,null,16,16]
["Item Ref No.",1,null,"Sheet Ref No.",null,{"$f":"CONCATENATE(\"AS\",NODE,\".\",REF_NO)","v":"AS1.1"},null,null,null,null,null,null,17,17]
[null,null,null,null,null,null,null,null,null,null,null,null,18,18]
["1.0","Hazard Description",null,null,null,null,null,null,null,null,null,null,{"$f":"M19+1","v":19},19]
[null,null,null,null,null,null,null,null,null,null,null,null,20,20]
["No.","ITEM",null,"DETAILS",null,null,null,null,null,null,null,null,21,21]
[1.1000000000000001,"Category",null,{"$f":"IF(VLOOKUP(REF_NO,INDIRECT(\"'\"&NODE&\"'!\"&\"Minutes_Sheet\"),2,0)=\"\",\"\",VLOOKUP(REF_NO,INDIRECT(\"'\"&NODE&\"'!\"&\"Minutes_Sheet\"),2,0))","v":""}]
[1.2,"Deviation/Guideword",null,{"$f":"IF(VLOOKUP(REF_NO,INDIRECT(\"'\"&NODE&\"'!\"&\"Minutes_Sheet\"),3,0)=\"\",\"\",VLOOKUP(REF_NO,INDIRECT(\"'\"&NODE&\"'!\"&\"Minutes_Sheet\"),3,0))","v":""},null,null,null,null,null,null,null,null,{"$f":"#REF!+1","v":{"$error":"#REF!"}},{"$f":"#REF!+1","v":{"$error":"#REF!"}}]
[1.3,{"$f":"'Minutes Template'!D7","v":"Risk Issue(s)"},null,{"$f":"IF(VLOOKUP(REF_NO,INDIRECT(\"'\"&NODE&\"'!\"&\"Minutes_Sheet\"),4,0)=\"\",\"\",VLOOKUP(REF_NO,INDIRECT(\"'\"&NODE&\"'!\"&\"Minutes_Sheet\"),4,0))","v":""}]
[1.4,"Cause(s)",null,{"$f":"IF(VLOOKUP(REF_NO,INDIRECT(\"'\"&NODE&\"'!\"&\"Minutes_Sheet\"),5,0)=\"\",\"\",VLOOKUP(REF_NO,INDIRECT(\"'\"&NODE&\"'!\"&\"Minutes_Sheet\"),5,0))","v":""},null,null,null,null,null,null,null,null,{"$f":"M24+1","v":{"$error":"#REF!"}},{"$f":"N24+1","v":{"$error":"#REF!"}}]
[1.5,"Consequence(s)",null,{"$f":"IF(VLOOKUP(REF_NO,INDIRECT(\"'\"&NODE&\"'!\"&\"Minutes_Sheet\"),6,0)=\"\",\"\",VLOOKUP(REF_NO,INDIRECT(\"'\"&NODE&\"'!\"&\"Minutes_Sheet\"),6,0))","v":""},null,null,null,null,null,null,null,null,{"$error":"#REF!"},{"$error":"#REF!"}]
[1.6,"Existing Safeguard(s)",null,{"$f":"IF(VLOOKUP(REF_NO,INDIRECT(\"'\"&NODE&\"'!\"&\"Minutes_Sheet\"),7,0)=\"\",\"\",VLOOKUP(REF_NO,INDIRECT(\"'\"&NODE&\"'!\"&\"Minutes_Sheet\"),7,0))","v":""},null,null,null,null,null,null,null,null,{"$error":"#REF!"},{"$error":"#REF!"}]
[null,null,null,null,null,null,null,null,null,null,null,null,{"$error":"#REF!"},{"$error":"#REF!"}]
["2.0","Required Action(s)",null,null,null,null,null,null,null,null,null,null,{"$error":"#REF!"},{"$error":"#REF!"}]
[null,null,null,null,null,null,null,null,null,null,null,null,{"$error":"#REF!"},{"$error":"#REF!"}]
["No.","ITEM",null,"DETAILS",null,null,null,null,null,null,null,null,{"$error":"#REF!"},{"$error":"#REF!"}]
[2.1,"Action Description",null,{"$f":"IF(VLOOKUP(REF_NO,INDIRECT(\"'\"&NODE&\"'!\"&\"Minutes_Sheet\"),8,0)=\"\",\"\",VLOOKUP(REF_NO,INDIRECT(\"'\"&NODE&\"'!\"&\"Minutes_Sheet\"),8,0))","v":""},null,null,null,null,null,null,null,null,{"$error":"#REF!"},{"$error":"#REF!"}]
[2.2000000000000002,"Action By",null,{"$f":"IF(VLOOKUP(REF_NO,INDIRECT(\"'\"&NODE&\"'!\"&\"Minutes_Sheet\"),9,0)=\"\",\"\",VLOOKUP(REF_NO,INDIRECT(\"'\"&NODE&\"'!\"&\"Minutes_Sheet\"),9,0))","v":""},null,null,null,null,null,null,null,null,{"$error":"#REF!"},{"$error":"#REF!"}]
[null,null,null,null,null,null,null,null,null,null,null,null,{"$error":"#REF!"},{"$error":"#REF!"}]
["3.0","Action Closure",null,null,null,null,null,null,null,null,null,null,{"$error":"#REF!"},{"$error":"#REF!"}]
[null,null,null,null,null,null,null,null,null,null,null,null,{"$error":"#REF!"},{"$error":"#REF!"}]
["No.","ITEM",null,"DETAILS",null,null,null,null,null,null,null,null,{"$error":"#REF!"},{"$error":"#REF!"}]
[3.1,"Closure Date",null,null,null,null,null,null,null,null,null,null,{"$error":"#REF!"},{"$error":"#REF!"}]
[3.2,"Closure Comments",null,null,null,null,null,null,null,null,null,null,{"$error":"#REF!"},{"$error":"#REF!"}]
[3.3,"Reference Documents or Attachments",null,null,null,null,null,null,null,null,null,null,{"$error":"#REF!"},{"$error":"#REF!"}]
[null,null,null,null,null,null,null,null,null,null,null,null,{"$error":"#REF!"},{"$error":"#REF!"}]
["4.0","Document Revision and Approval",null,null,null,null,null,null,null,null,null,null,null,{"$error":"#REF!"}]
[null,null,"Name",null,null,"Signature",null,null,"Date",null,null,null,null,{"$error":"#REF!"}]
["Response Prepared By",null,null,null,null,null,null,null,null,null,null,null,null,{"$error":"#REF!"}]
["Process Checked By",null,null,null,null,null,null,null,null,null,null,null,null,{"$error":"#REF!"}]
["Mechanical Checked By",null,null,null,null,null,null,null,null,null,null,null,null,{"$error":"#REF!"}]
["EC&I Checked By",null,null,null,null,null,null,null,null,null,null,null,null,{"$error":"#REF!"}]
["Approved By",null,null,null,null,null,null,null,null,null,null,null,null,{"$error":"#REF!"}]
[null,null,null,null,null,null,null,null,null,null,null,null,null,{"$error":"#REF!"}]
[null,null,null,null,null,null,null,null,null,null,null,null,null,{"$error":"#REF!"}]
[null,null,null,null,null,null,null,null,null,null,null,null,null,{"$f":"#REF!+1","v":{"$error":"#REF!"}}]
[null,null,null,null,null,null,null,null,null,null,null,null,null,{"$error":"#REF!"}]
[null,null,null,null,null,null,null,null,null,null,null,null,null,{"$error":"#REF!"}]
[null,null,null,null,null,null,null,null,null,null,null,null,null,{"$error":"#REF!"}]
[null,null,null,null,null,null,null,null,null,null,null,null,null,{"$error":"#REF!"}]
[null,null,null,null,null,null,null,null,null,null,null,null,null,{"$error":"#REF!"}]
[null,null,null,null,null,null,null,null,null,null,null,null,null,{"$error":"#REF!"}]
[null,null,null,null,null,null,null,null,null,null,null,null,null,{"$error":"#REF!"}]
[null,null,null,null,null,null,null,null,null,null,null,null,null,{"$error":"#REF!"}]
[null,null,null,null,null,null,null,null,null,null,null,null,null,{"$error":"#REF!"}]
[null,null,null,null,null,null,null,null,null,null,null,null,null,{"$error":"#REF!"}]
[null,null,null,null,null,null,null,null,null,null,null,null,null,{"$error":"#REF!"}]
[null,null,null,null,null,null,null,null,null,null,null,null,null,{"$error":"#REF!"}]
[null,null,null,null,null,null,null,null,null,null,null,null,null,{"$error":"#REF!"}]
[null,null,null,null,null,null,null,null,null,null,null,null,null,{"$error":"#REF!"}]
[null,null,null,null,null,null,null,null,null,null,null,null,null,{"$error":"#REF!"}]
[null,null,null,null,null,null,null,null,null,null,null,null,null,{"$error":"#REF!"}]
[null,null,null,null,null,null,null,null,null,null,null,null,null,{"$error":"#REF!"}]
[null,null,null,null,null,null,null,null,null,null,null,null,null,{"$error":"#REF!"}]
[null,null,null,null,null,null,null,null,null,null,null,null,null,{"$error":"#REF!"}]
[null,null,null,null,null,null,null,null,null,null,null,null,null,{"$error":"#REF!"}]
[null,null,null,null,null,null,null,null,null,null,null,null,null,{"$error":"#REF!"}]
[null,null,null,null,null,null,null,null,null,null,null,null,null,{"$error":"#REF!"}]
[null,null,null,null,null,null,null,null,null,null,null,null,null,{"$error":"#REF!"}]
[null,null,null,null,null,null,null,null,null,null,null,null,null,{"$error":"#REF!"}]
[null,null,null,null,null,null,null,null,null,null,null,null,null,{"$error":"#REF!"}]
[null,null,null,null,null,null,null,null,null,null,null,null,null,{"$error":"#REF!"}]
[null,null,null,null,null,null,null,null,null,null,null,null,null,{"$f":"N78+1","v":{"$error":"#REF!"}}]
[null,null,null,null,null,null,null,null,null,null,null,null,null,{"$error":"#REF!"}]
[null,null,null,null,null,null,null,null,null,null,null,null,null,{"$error":"#REF!"}]
[null,null,null,null,null,null,null,null,null,null,null,null,null,{"$error":"#REF!"}]
[null,null,null,null,null,null,null,null,null,null,null,null,null,{"$error":"#REF!"}]
[null,null,null,null,null,null,null,null,null,null,null,null,null,{"$error":"#REF!"}]
[null,null,null,null,null,null,null,null,null,null,null,null,null,{"$error":"#REF!"}]
[null,null,null,null,null,null,null,null,null,null,null,null,null,{"$error":"#REF!"}]
[null,null,null,null,null,null,null,null,null,null,null,null,null,{"$error":"#REF!"}]
[null,null,null,null,null,null,null,null,null,null,null,null,null,{"$error":"#REF!"}]
[null,null,null,null,null,null,null,null,null,null,null,null,null,{"$error":"#REF!"}]
[null,null,null,null,null,null,null,null,null,null,null,null,null,{"$error":"#REF!"}]
[null,null,null,null,null,null,null,null,null,null,null,null,null,{"$error":"#REF!"}]
[null,null,null,null,null,null,null,null,null,null,null,null,null,{"$error":"#REF!"}]
[null,null,null,null,null,null,null,null,null,null,null,null,null,{"$error":"#REF!"}]
[null,null,null,null,null,null,null,null,null,null,null,null,null,{"$error":"#REF!"}]
[null,null,null,null,null,null,null,null,null,null,null,null,null,{"$error":"#REF!"}]
[null,null,null,null,null,null,null,null,null,null,null,null,null,{"$error":"#REF!"}]
[null,null,null,null,null,null,null,null,null,null,null,null,null,{"$error":"#REF!"}]

{"sheet":"Action Sheet Template","index":7,"n_rows":97,"n_cols":14,"rows_kept":97,"cut":false,"hidden":false,"merged":[[48,2,48,4],[48,5,48,7],[48,8,48,10],[43,2,43,4],[46,8,46,10],[47,2,47,4],[47,5,47,7],[47,8,47,10],[45,0,45,1],[46,0,46,1],[47,0,47,1],[48,0,48,1],[42,1,42,10],[45,2,45,4],[46,2,46,4],[45,5,45,7],[45,8,45,10],[46,5,46,7],[43,5,43,7],[43,8,43,10],[43,0,43,1],[44,2,44,4],[44,5,44,7],[44,8,44,10],[40,1,40,2],[40,3,40,10],[44,0,44,1],[23,3,23,10],[25,3,25,10],[26,3,26,10],[27,3,27,10],[39,1,39,2],[39,3,39,10],[37,1,37,2],[38,1,38,2],[37,3,37,10],[38,3,38,10],[35,1,35,10],[33,1,33,2],[33,3,33,10],[26,1,26,2],[27,1,27,2],[1,3,4,7],[11,0,11,1],[11,2,11,10],[21,1,21,2],[21,3,21,10],[13,1,13,10],[6,0,6,1],[6,2,6,10],[7,2,7,10],[8,2,8,10],[9,2,9,10],[15,3,15,4],[15,5,15,10],[19,1,19,10],[31,1,31,2],[32,1,32,2],[31,3,31,10],[32,3,32,10],[29,1,29,10],[23,1,23,2],[25,1,25,2],[17,3,17,4],[22,1,22,2],[22,3,22,10],[24,1,24,2],[24,3,24,10]]}
[null,null,null,null,null,null,null,null,null,null,null,null,"Node Numbers","Item Reference Numbers"]
[null,null,null,"ACTION & RESPONSE SHEET",null,null,null,null,null,null,null,null,1,1]
[null,null,null,null,null,null,null,null,null,null,null,null,{"$f":"M2+1","v":2},{"$f":"N2+1","v":2}]
[null,null,null,null,null,null,null,null,null,null,null,null,{"$f":"M3+1","v":3},{"$f":"N3+1","v":3}]
[null,null,null,null,null,null,null,null,null,null,null,null,4,4]
[null,null,null,null,null,null,null,null,null,null,null,null,5,5]
["CHAIR Date(s)",null,{"$f":"DATE","v":"INSERT CHAIR DATE(S)"},null,null,null,null,null,null,null,null,null,6,6]
["Head Contractor Name",null,{"$f":"IF(HEADCONTRACTOR=\"\",\"\",HEADCONTRACTOR)","v":""},null,null,null,null,null,null,null,null,null,7,7]
["UW Project No. & Name",null,{"$f":"PROJNUM&\" \"&PROJTITLE","v":"INSERT PROJECT NUMBER INSERT PROJECT TITLE"},null,null,null,null,null,null,null,null,null,8,8]
["Location (Site)",null,{"$f":"IF(LOCATION=\"\",\"\",LOCATION)","v":""},null,null,null,null,null,null,null,null,null,9,9]
[null,null,null,null,null,null,null,null,null,null,null,null,10,10]
["Action Sheet Due Date",null,null,null,null,null,null,null,null,null,null,null,11,11]
[null,null,null,null,null,null,null,null,null,null,null,null,12,12]
["P&ID Refs.",{"$f":"IF(VLOOKUP(NODE, INDIRECT(\"'\"&NODE&\"'!\"&\"NODE_DETAILS\"),6,0) = \"\",\"\", VLOOKUP(NODE,INDIRECT(\"'\"&NODE&\"'!\"&\"NODE_DETAILS\"),6,0))","v":{"$error":"#REF!"}},null,null,null,null,null,null,null,null,null,null,{"$f":"M13+1","v":13},{"$f":"N13+1","v":13}]
[null,null,null,null,null,null,null,null,null,null,null,null,{"$f":"N14+1","v":14},{"$f":"N14+1","v":14}]
["Step/System:",null,null,"NODE DESCRIPTION:",null,{"$f":"IF(VLOOKUP(NODE, INDIRECT(\"'\"&NODE&\"'!\"&\"NODE_DETAILS\"),3,0) = \"\",\"\", VLOOKUP(NODE,INDIRECT(\"'\"&NODE&\"'!\"&\"NODE_DETAILS\"),3,0))","v":{"$error":"#REF!"}},null,null,null,null,null,null,15,15]
[null,null,null,null,null,null,null,null,null,null,null,null,16,16]
["Item Ref No.",null,null,"Sheet Ref No.",null,{"$f":"CONCATENATE(\"AS\",NODE,\".\",REF_NO)","v":"AS."},null,null,null,null,null,null,17,17]
[null,null,null,null,null,null,null,null,null,null,null,null,18,18]
["1.0","Hazard Description",null,null,null,null,null,null,null,null,null,null,19,19]
[null,null,null,null,null,null,null,null,null,null,null,null,20,20]
["No.","ITEM",null,"DETAILS",null,null,null,null,null,null,null,null,21,21]
[1.1000000000000001,"Category",null,{"$f":"IF(VLOOKUP(REF_NO,INDIRECT(\"'\"&NODE&\"'!\"&\"Minutes_Sheet\"),2,0)=\"\",\"\",VLOOKUP(REF_NO,INDIRECT(\"'\"&NODE&\"'!\"&\"Minutes_Sheet\"),2,0))","v":{"$error":"#REF!"}}]
[1.2,"Deviation/Guideword",null,{"$f":"IF(VLOOKUP(REF_NO,INDIRECT(\"'\"&NODE&\"'!\"&\"Minutes_Sheet\"),3,0)=\"\",\"\",VLOOKUP(REF_NO,INDIRECT(\"'\"&NODE&\"'!\"&\"Minutes_Sheet\"),3,0))","v":{"$error":"#REF!"}},null,null,null,null,null,null,null,null,{"$f":"#REF!+1","v":{"$error":"#REF!"}},{"$f":"#REF!+1","v":{"$error":"#REF!"}}]
[1.3,{"$f":"'Minutes Template'!D7","v":"Risk Issue(s)"},null,{"$f":"IF(VLOOKUP(REF_NO,INDIRECT(\"'\"&NODE&\"'!\"&\"Minutes_Sheet\"),4,0)=\"\",\"\",VLOOKUP(REF_NO,INDIRECT(\"'\"&NODE&\"'!\"&\"Minutes_Sheet\"),4,0))","v":{"$error":"#REF!"}}]
[1.4,"Cause(s)",null,{"$f":"IF(VLOOKUP(REF_NO,INDIRECT(\"'\"&NODE&\"'!\"&\"Minutes_Sheet\"),5,0)=\"\",\"\",VLOOKUP(REF_NO,INDIRECT(\"'\"&NODE&\"'!\"&\"Minutes_Sheet\"),5,0))","v":{"$error":"#REF!"}},null,null,null,null,null,null,null,null,{"$f":"M24+1","v":{"$error":"#REF!"}},{"$f":"N24+1","v":{"$error":"#REF!"}}]
[1.5,"Consequence(s)",null,{"$f":"IF(VLOOKUP(REF_NO,INDIRECT(\"'\"&NODE&\"'!\"&\"Minutes_Sheet\"),6,0)=\"\",\"\",VLOOKUP(REF_NO,INDIRECT(\"'\"&NODE&\"'!\"&\"Minutes_Sheet\"),6,0))","v":{"$error":"#REF!"}},null,null,null,null,null,null,null,null,{"$error":"#REF!"},{"$error":"#REF!"}]
[1.6,"Existing Safeguard(s)",null,{"$f":"IF(VLOOKUP(REF_NO,INDIRECT(\"'\"&NODE&\"'!\"&\"Minutes_Sheet\"),7,0)=\"\",\"\",VLOOKUP(REF_NO,INDIRECT(\"'\"&NODE&\"'!\"&\"Minutes_Sheet\"),7,0))","v":{"$error":"#REF!"}},null,null,null,null,null,null,null,null,{"$error":"#REF!"},{"$error":"#REF!"}]
[null,null,null,null,null,null,null,null,null,null,null,null,{"$error":"#REF!"},{"$error":"#REF!"}]
["2.0","Required Action(s)",null,null,null,null,null,null,null,null,null,null,{"$error":"#REF!"},{"$error":"#REF!"}]
[null,null,null,null,null,null,null,null,null,null,null,null,{"$error":"#REF!"},{"$error":"#REF!"}]
["No.","ITEM",null,"DETAILS",null,null,null,null,null,null,null,null,{"$error":"#REF!"},{"$error":"#REF!"}]
[2.1,"Action Description",null,{"$f":"IF(VLOOKUP(REF_NO,INDIRECT(\"'\"&NODE&\"'!\"&\"Minutes_Sheet\"),8,0)=\"\",\"\",VLOOKUP(REF_NO,INDIRECT(\"'\"&NODE&\"'!\"&\"Minutes_Sheet\"),8,0))","v":{"$error":"#REF!"}},null,null,null,null,null,null,null,null,{"$error":"#REF!"},{"$error":"#REF!"}]
[2.2000000000000002,"Action By",null,{"$f":"IF(VLOOKUP(REF_NO,INDIRECT(\"'\"&NODE&\"'!\"&\"Minutes_Sheet\"),9,0)=\"\",\"\",VLOOKUP(REF_NO,INDIRECT(\"'\"&NODE&\"'!\"&\"Minutes_Sheet\"),9,0))","v":{"$error":"#REF!"}},null,null,null,null,null,null,null,null,{"$error":"#REF!"},{"$error":"#REF!"}]
[null,null,null,null,null,null,null,null,null,null,null,null,{"$error":"#REF!"},{"$error":"#REF!"}]
["3.0","Action Closure",null,null,null,null,null,null,null,null,null,null,{"$error":"#REF!"},{"$error":"#REF!"}]
[null,null,null,null,null,null,null,null,null,null,null,null,{"$error":"#REF!"},{"$error":"#REF!"}]
["No.","ITEM",null,"DETAILS",null,null,null,null,null,null,null,null,{"$error":"#REF!"},{"$error":"#REF!"}]
[3.1,"Closure Date",null,null,null,null,null,null,null,null,null,null,{"$error":"#REF!"},{"$error":"#REF!"}]
[3.2,"Closure Comments",null,null,null,null,null,null,null,null,null,null,{"$error":"#REF!"},{"$error":"#REF!"}]
[3.3,"Reference Documents or Attachments",null,null,null,null,null,null,null,null,null,null,{"$error":"#REF!"},{"$error":"#REF!"}]
[null,null,null,null,null,null,null,null,null,null,null,null,{"$error":"#REF!"},{"$error":"#REF!"}]
["4.0","Document Revision and Approval",null,null,null,null,null,null,null,null,null,null,null,{"$error":"#REF!"}]
[null,null,"Name",null,null,"Signature",null,null,"Date",null,null,null,null,{"$error":"#REF!"}]
["Response Prepared By",null,null,null,null,null,null,null,null,null,null,null,null,{"$error":"#REF!"}]
["Process Checked By",null,null,null,null,null,null,null,null,null,null,null,null,{"$error":"#REF!"}]
["Mechanical Checked By",null,null,null,null,null,null,null,null,null,null,null,null,{"$error":"#REF!"}]
["EC&I Checked By",null,null,null,null,null,null,null,null,null,null,null,null,{"$error":"#REF!"}]
["Approved By",null,null,null,null,null,null,null,null,null,null,null,null,{"$error":"#REF!"}]
[null,null,null,null,null,null,null,null,null,null,null,null,null,{"$error":"#REF!"}]
[null,null,null,null,null,null,null,null,null,null,null,null,null,{"$error":"#REF!"}]
[null,null,null,null,null,null,null,null,null,null,null,null,null,{"$f":"#REF!+1","v":{"$error":"#REF!"}}]
[null,null,null,null,null,null,null,null,null,null,null,null,null,{"$error":"#REF!"}]
[null,null,null,null,null,null,null,null,null,null,null,null,null,{"$error":"#REF!"}]
[null,null,null,null,null,null,null,null,null,null,null,null,null,{"$error":"#REF!"}]
[null,null,null,null,null,null,null,null,null,null,null,null,null,{"$error":"#REF!"}]
[null,null,null,null,null,null,null,null,null,null,null,null,null,{"$error":"#REF!"}]
[null,null,null,null,null,null,null,null,null,null,null,null,null,{"$error":"#REF!"}]
[null,null,null,null,null,null,null,null,null,null,null,null,null,{"$error":"#REF!"}]
[null,null,null,null,null,null,null,null,null,null,null,null,null,{"$error":"#REF!"}]
[null,null,null,null,null,null,null,null,null,null,null,null,null,{"$error":"#REF!"}]
[null,null,null,null,null,null,null,null,null,null,null,null,null,{"$error":"#REF!"}]
[null,null,null,null,null,null,null,null,null,null,null,null,null,{"$error":"#REF!"}]
[null,null,null,null,null,null,null,null,null,null,null,null,null,{"$error":"#REF!"}]
[null,null,null,null,null,null,null,null,null,null,null,null,null,{"$error":"#REF!"}]
[null,null,null,null,null,null,null,null,null,null,null,null,null,{"$error":"#REF!"}]
[null,null,null,null,null,null,null,null,null,null,null,null,null,{"$error":"#REF!"}]
[null,null,null,null,null,null,null,null,null,null,null,null,null,{"$error":"#REF!"}]
[null,null,null,null,null,null,null,null,null,null,null,null,null,{"$error":"#REF!"}]
[null,null,null,null,null,null,null,null,null,null,null,null,null,{"$error":"#REF!"}]
[null,null,null,null,null,null,null,null,null,null,null,null,null,{"$error":"#REF!"}]
[null,null,null,null,null,null,null,null,null,null,null,null,null,{"$error":"#REF!"}]
[null,null,null,null,null,null,null,null,null,null,null,null,null,{"$error":"#REF!"}]
[null,null,null,null,null,null,null,null,null,null,null,null,null,{"$error":"#REF!"}]
[null,null,null,null,null,null,null,null,null,null,null,null,null,{"$f":"N74+1","v":{"$error":"#REF!"}}]
[null,null,null,null,null,null,null,null,null,null,null,null,null,{"$error":"#REF!"}]
[null,null,null,null,null,null,null,null,null,null,null,null,null,{"$error":"#REF!"}]
[null,null,null,null,null,null,null,null,null,null,null,null,null,{"$error":"#REF!"}]
[null,null,null,null,null,null,null,null,null,null,null,null,null,{"$error":"#REF!"}]
[null,null,null,null,null,null,null,null,null,null,null,null,null,{"$error":"#REF!"}]
[null,null,null,null,null,null,null,null,null,null,null,null,null,{"$error":"#REF!"}]
[null,null,null,null,null,null,null,null,null,null,null,null,null,{"$error":"#REF!"}]
[null,null,null,null,null,null,null,null,null,null,null,null,null,{"$error":"#REF!"}]
[null,null,null,null,null,null,null,null,null,null,null,null,null,{"$error":"#REF!"}]
[null,null,null,null,null,null,null,null,null,null,null,null,null,{"$error":"#REF!"}]
[null,null,null,null,null,null,null,null,null,null,null,null,null,{"$error":"#REF!"}]
[null,null,null,null,null,null,null,null,null,null,null,null,null,{"$error":"#REF!"}]
[null,null,null,null,null,null,null,null,null,null,null,null,null,{"$error":"#REF!"}]
[null,null,null,null,null,null,null,null,null,null,null,null,null,{"$error":"#REF!"}]
[null,null,null,null,null,null,null,null,null,null,null,null,null,{"$error":"#REF!"}]
[null,null,null,null,null,null,null,null,null,null,null,null,null,{"$error":"#REF!"}]
[null,null,null,null,null,null,null,null,null,null,null,null,null,{"$error":"#REF!"}]
[null,null,null,null,null,null,null,null,null,null,null,null,null,{"$error":"#REF!"}]
[null,null,null,null,null,null,null,null,null,null,null,null,null,{"$error":"#REF!"}]
[null,null,null,null,null,null,null,null,null,null,null,null,null,{"$error":"#REF!"}]
[null,null,null,null,null,null,null,null,null,null,null,null,null,{"$error":"#REF!"}]
[null,null,null,null,null,null,null,null,null,null,null,null,null,{"$error":"#REF!"}]

{"sheet":"Parking Lot","index":8,"n_rows":31,"n_cols":11,"rows_kept":31,"cut":false,"hidden":false,"merged":[[26,10,26,11],[27,10,27,11],[28,10,28,11],[29,10,29,11],[30,10,30,11],[30,1,30,2],[30,3,30,5],[30,6,30,7],[30,8,30,9],[29,1,29,2],[29,3,29,5],[29,6,29,7],[29,8,29,9],[15,10,15,11],[16,10,16,11],[17,10,17,11],[18,10,18,11],[25,10,25,11],[20,10,20,11],[21,10,21,11],[22,10,22,11],[23,10,23,11],[24,10,24,11],[19,10,19,11],[28,1,28,2],[28,3,28,5],[28,6,28,7],[28,8,28,9],[26,1,26,2],[26,3,26,5],[26,6,26,7],[26,8,26,9],[27,1,27,2],[27,3,27,5],[27,6,27,7],[27,8,27,9],[24,1,24,2],[24,3,24,5],[24,6,24,7],[24,8,24,9],[25,1,25,2],[25,3,25,5],[25,6,25,7],[25,8,25,9],[22,1,22,2],[22,3,22,5],[22,6,22,7],[22,8,22,9],[23,1,23,2],[23,3,23,5],[23,6,23,7],[23,8,23,9],[20,1,20,2],[20,3,20,5],[20,6,20,7],[20,8,20,9],[21,1,21,2],[21,3,21,5],[21,6,21,7],[21,8,21,9],[18,1,18,2],[18,3,18,5],[18,6,18,7],[18,8,18,9],[19,1,19,2],[19,3,19,5],[19,6,19,7],[19,8,19,9],[16,1,16,2],[16,3,16,5],[16,6,16,7],[16,8,16,9],[17,1,17,2],[17,3,17,5],[17,6,17,7],[17,8,17,9],[15,1,15,2],[15,3,15,5],[15,6,15,7],[15,8,15,9],[1,3,2,7],[4,0,4,1],[7,2,7,11],[6,2,6,11],[5,2,5,11],[4,2,4,11],[12,1,12,10],[14,1,14,2],[14,3,14,5],[14,6,14,7],[14,8,14,9],[14,10,14,11]]}
[]
[null,null,null,"PARKING LOT"]
[]
[]
["Date",null,{"$f":"DATE","v":"INSERT CHAIR DATE(S)"}]
["Head Contractor Name",null,{"$f":"IF(HEADCONTRACTOR=\"\",\"\",HEADCONTRACTOR)","v":""}]
["UW Project No. & Name",null,{"$f":"PROJNUM&\" \"&PROJTITLE","v":"INSERT PROJECT NUMBER INSERT PROJECT TITLE"}]
["Location (Site)",null,{"$f":"IF(LOCATION=\"\",\"\",LOCATION)","v":""}]
[]
[]
["5.0","Parking Lot Issues"]
[]
[null,"The following table provides a list of drawings used during the workshop and their associated revision numbers. This table should be filled out prior to the workshop and be printed along with the guideword set. At the start of the workshop it should be distributed to each attendee for reference to the relevant drawings."]
[]
[null,"No.",null,"Drawing/Document Ref No.",null,null,"Revision No.",null,"Minutes Sheet Ref.",null,"Minutes Sheet Ref."]
[null,1]
[null,2]
[null,3]
[null,4]
[null,5]
[null,6]
[null,7]
[null,8]
[null,9]
[null,10]
[null,11]
[null,12]
[null,13]
[null,14]
[null,15]
[null,16]

{"sheet":"Guidewords","index":9,"n_rows":77,"n_cols":4,"rows_kept":77,"cut":false,"hidden":false,"merged":[[76,2,78,2],[61,2,63,2],[64,2,66,2],[67,2,69,2],[70,2,72,2],[73,2,75,2],[1,2,4,3],[49,1,78,1],[7,1,16,1],[17,1,26,1],[27,1,30,1],[7,2,16,2],[17,2,26,2],[27,2,30,2],[31,1,38,1],[31,2,38,2],[39,1,44,1],[39,2,44,2],[49,2,51,2],[52,2,54,2],[55,2,57,2],[58,2,60,2]]}
[]
[null,null,"CHAIR 2 & 3 GUIDEWORDS"]
[]
[]
[]
[null,"CHAIR 2 Guidewords"]
["List of Category","Card Number","Guideword","Sub-Prompts"]
["Eliminate","CHAIR 2.2","Eliminate","Falls (of people)"]
["Substitute",null,null,"Falling material/objects"]
["Combine",null,null,"Stepping on or striking against objects"]
["Avoid",null,null,"Caught or trapped"]
["Other Issues",null,null,"Lifting and carrying (over exertion)"]
["Posture Manual Handling",null,null,"Asphyxiation/drowing"]
["Access Egress",null,null,"Machinery"]
["Heights Dropped Objects",null,null,"Electricity"]
["Weight",null,null,"Transport/mobile plant"]
["Discomfort Stress",null,null,"Toxicity, fires and explosion"]
["Personnel Protective Equipment","CHAIR 2.3","Substitute","Falls (of people)"]
["Visibility",null,null,"Falling material/objects"]
["Slips Trips Falls",null,null,"Stepping on or striking against objects"]
["Rotating Moving Equipment",null,null,"Caught or trapped"]
["Is repair different",null,null,"Lifting and carrying (over exertion)"]
[null,null,null,"Asphyxiation/drowing"]
[null,null,null,"Machinery"]
[null,null,null,"Electricity"]
[null,null,null,"Transport/mobile plant"]
[null,null,null,"Toxicity, fires and explosion"]
[null,"CHAIR 2.4","Combine","Construction/Lifting"]
[null,null,null,"Sequence"]
[null,null,null,"Timing"]
[null,null,null,"Locations"]
[null,"CHAIR 2.5","Avoid","Construction/Lifting"]
[null,null,null,"Sequence"]
[null,null,null,"Timing/Locations"]
[null,null,null,"Temporary Instability"]
[null,null,null,"Access/Egress"]
[null,null,null,"Delays/Confined Space"]
[null,null,null,"Erection/Dismantling"]
[null,null,null,"Heat/Cold/Noise"]
[null,"CHAIR 2.6","Other Issues","Modification"]
[null,null,null,"Isolation/engineering controls"]
[null,null,null,"PPE"]
[null,null,null,"Alter/rearrange"]
[null,null,null,"Increase/reduce"]
[null,null,null,"Simplify/Improve"]
[]
[]
[null,"CHAIR 3 Guidewords"]
[null,"Card Number","Guideword","Sub-Prompts"]
[null,"CHAIR 3","Posture/Manual Handling"]
[]
[]
[null,null,"Access/Egress"]
[]
[]
[null,null,"Heights/Dropped Objects"]
[]
[]
[null,null,"Weight"]
[]
[]
[null,null,"Discomfort/Stress"]
[]
[]
[null,null,"Personnel Protective Equipment"]
[]
[]
[null,null,"Visibility"]
[]
[]
[null,null,"Slips, Trips, Falls"]
[]
[]
[null,null,"Rotating/Moving Equipment"]
[]
[]
[null,null,"Is repair different?"]